bitfinex-derivatives/quotes_BTCF0:USTF0_20250614
["timestamp","ask_amount","ask_price","bid_price","bid_amount"]
[1749907398605,0.8823906,104980.0,104970.0,1.9690967]
[1749907398903,0.8823906,104980.0,104970.0,1.1461767]
[1749907399305,0.8823906,104980.0,104970.0,0.1904567]
[1749907399503,0.8823906,104980.0,104970.0,0.9658167]
[1749907399698,0.8823906,104980.0,104970.0,1.1461767]
[1749907400508,0.8823906,104980.0,104970.0,0.1904567]
[1749907400703,0.8823906,104980.0,104970.0,1.1462167]
[1749907401002,0.8823906,104980.0,104970.0,0.1904567]
[1749907401203,0.1904566,104970.0,104960.0,1.23433065]
[1749907401399,0.84863936,104970.0,104960.0,2.19005065]
[1749907403295,0.84863936,104970.0,104960.0,2.19105065]
[1749907403700,0.84863936,104970.0,104960.0,1.23533065]
[1749907403900,0.84863936,104970.0,104960.0,2.1251331]
[1749907404306,0.84863936,104970.0,104960.0,2.06571885]
[1749907406109,0.84863936,104970.0,104960.0,0.82426255]
[1749907406408,0.84863936,104970.0,104960.0,1.97049745]
[1749907407198,0.84863936,104970.0,104960.0,0.00114255]
[1749907407403,1.31334235,104970.0,104960.0,0.18150255]
[1749907407602,1.02334235,104970.0,104960.0,0.18150255]
[1749907408113,0.92807035,104970.0,104960.0,0.18150255]
[1749907408612,0.90807035,104970.0,104960.0,0.18150255]
[1749907408909,0.91207035,104970.0,104960.0,0.18150255]
[1749907409612,1.41707035,104970.0,104960.0,0.18050255]
[1749907411709,1.21458759,104970.0,104960.0,0.37097735]
[1749907411910,1.1245566,104970.0,104960.0,0.70097735]
[1749907412105,1.0602566,104970.0,104960.0,0.79377735]
[1749907412510,1.0602566,104970.0,104960.0,0.99626011]
[1749907413111,1.0602566,104970.0,104960.0,0.79377735]
[1749907421115,1.26273936,104970.0,104960.0,0.46377735]
[1749907422417,1.26273936,104970.0,104960.0,0.27330255]
[1749907422618,1.26273936,104970.0,104960.0,1.23909735]
[1749907422919,1.32683936,104970.0,104960.0,1.23909735]
[1749907424017,1.33097771,104970.0,104960.0,1.23909735]
[1749907424812,1.3904087,104970.0,104960.0,1.23909735]
[1749907428910,1.3904087,104970.0,104960.0,0.24146255]
[1749907429110,1.3904087,104970.0,104960.0,0.43193735]
[1749907430924,1.3904087,104970.0,104960.0,0.18046255]
[1749907431119,1.47965758,104970.0,104960.0,0.18046255]
[1749907431417,1.83965758,104970.0,104960.0,0.19362957]
[1749907431620,1.42022659,104970.0,104960.0,0.01330957]
[1749907431817,1.78022659,104970.0,104960.0,0.18046255]
[1749907432017,1.42022659,104970.0,104960.0,0.01334258]
[1749907432318,1.42022659,104970.0,104960.0,0.19365578]
[1749907432521,1.42022659,104970.0,104960.0,0.19365608]
[1749907433113,1.42022659,104970.0,104960.0,0.18046255]
[1749907433312,1.47960546,104970.0,104960.0,0.19367492]
[1749907433514,1.47960546,104970.0,104960.0,0.18046255]
[1749907434022,1.82960546,104970.0,104960.0,0.18046255]
[1749907434221,1.47960546,104970.0,104960.0,0.19365106]
[1749907434424,1.47960546,104970.0,104960.0,0.18046255]
[1749907434618,1.42022659,104970.0,104960.0,0.19363805]
[1749907434820,1.47960324,104970.0,104960.0,0.19365625]
[1749907435324,1.7330927,104970.0,104960.0,0.19365493]
[1749907435724,1.7330927,104970.0,104960.0,0.18046255]
[1749907435919,1.7330927,104970.0,104960.0,0.19365488]
[1749907436115,1.7330927,104970.0,104960.0,0.18046255]
[1749907436518,1.7330927,104970.0,104960.0,0.19365491]
[1749907436919,1.7330927,104970.0,104960.0,0.1936549]
[1749907437212,1.7330927,104970.0,104960.0,0.37093735]
[1749907437418,1.7330927,104970.0,104960.0,0.38417158]
[1749907437625,1.47260659,104970.0,104960.0,0.44725764]
[1749907437824,1.47260659,104970.0,104960.0,0.46723735]
[1749907438219,1.46846824,104970.0,104960.0,0.46723735]
[1749907438427,1.43686824,104970.0,104960.0,0.46723735]
[1749907439327,1.411503,104970.0,104960.0,0.46723735]
[1749907441228,1.41564135,104970.0,104960.0,0.46723735]
[1749907441527,1.44634135,104970.0,104960.0,0.46723735]
[1749907442226,1.442203,104970.0,104960.0,0.46723735]
[1749907442630,1.411503,104970.0,104960.0,0.46723735]
[1749907444727,1.442003,104970.0,104960.0,0.46723735]
[1749907445129,1.35275412,104970.0,104960.0,0.46723735]
[1749907446131,1.442003,104970.0,104960.0,0.46723735]
[1749907447931,1.11963325,104970.0,104960.0,0.46723735]
[1749907449531,1.11963325,104970.0,104960.0,0.5266516]
[1749907459226,1.34756392,104970.0,104960.0,0.5266516]
[1749907463340,1.34756392,104970.0,104960.0,0.75458227]
[1749907463941,1.34756392,104970.0,104960.0,0.5266516]
[1749907464145,1.34756392,104970.0,104960.0,0.75458227]
[1749907464344,1.34756392,104970.0,104960.0,0.5266516]
[1749907466443,1.11963325,104970.0,104960.0,0.5266516]
[1749907466649,1.34756392,104970.0,104960.0,0.5266516]
[1749907467944,1.34756392,104970.0,104960.0,0.75458227]
[1749907472365,1.34756392,104970.0,104960.0,1.06458227]
[1749907473468,1.34756392,104970.0,104960.0,0.75458227]
[1749907473660,1.11963325,104970.0,104960.0,1.09458227]
[1749907473860,0.509,104970.0,104960.0,1.48507787]
[1749907474055,0.6994567,104970.0,104960.0,1.48507787]
[1749907476069,0.92738737,104970.0,104960.0,1.48507787]
[1749907476969,0.6994567,104970.0,104960.0,1.48507787]
[1749907477672,0.1994567,104970.0,104960.0,1.48507787]
[1749907477865,0.1994567,104970.0,104960.0,1.12427787]
[1749907481672,0.1994567,104970.0,104960.0,1.18374423]
[1749907482171,0.42738737,104970.0,104960.0,1.18374423]
[1749907484878,0.43152572,104970.0,104960.0,1.18374423]
[1749907485878,0.42738737,104970.0,104960.0,1.18374423]
[1749907486074,0.1994567,104970.0,104960.0,1.18374423]
[1749907486268,0.009,104970.0,104960.0,1.54454423]
[1749907486579,0.009,104970.0,104960.0,1.82689451]
[1749907486777,0.009,104970.0,104960.0,1.73778466]
[1749907486974,0.009,104970.0,104960.0,1.85663081]
[1749907490080,0.009,104970.0,104960.0,1.73778466]
[1749907490585,0.009,104970.0,104960.0,1.50985399]
[1749907492882,0.005,104970.0,104960.0,1.50985399]
[1749907493283,0.2380503,104980.0,104970.0,0.1904567]
[1749907493580,0.2380503,104980.0,104970.0,2.98991242]
[1749907494582,0.2390503,104980.0,104970.0,2.98991242]
[1749907494881,0.2400503,104980.0,104970.0,2.98991242]
[1749907498686,0.82878097,104980.0,104970.0,1.16210175]
[1749907498877,0.92348097,104980.0,104970.0,2.02789072]
[1749907500089,0.92348097,104980.0,104970.0,2.26582139]
[1749907500689,0.92348097,104980.0,104970.0,1.31094139]
[1749907500882,0.92348097,104980.0,104970.0,1.07301072]
[1749907501387,0.20720269,104970.0,104960.0,1.09174204]
[1749907501694,0.85733336,104970.0,104960.0,2.09658204]
[1749907502180,0.86147171,104970.0,104960.0,2.09658204]
[1749907502788,0.86147171,104970.0,104960.0,2.09758204]
[1749907503092,0.85733336,104970.0,104960.0,2.09758204]
[1749907503294,0.62940269,104970.0,104960.0,2.09758204]
[1749907503689,0.62940269,104970.0,104960.0,2.09658204]
[1749907503988,0.63440269,104970.0,104960.0,2.09658204]
[1749907504189,0.63854104,104970.0,104960.0,2.09658204]
[1749907504494,0.8411509,104970.0,104960.0,2.09658204]
[1749907506793,0.63854104,104970.0,104960.0,2.09658204]
[1749907507094,0.27774104,104970.0,104960.0,2.40658204]
[1749907507294,0.27360269,104970.0,104960.0,2.43818204]
[1749907509096,0.27360269,104970.0,104960.0,2.09658204]
[1749907510699,0.24260269,104970.0,104960.0,2.6291919]
[1749907510900,0.24260269,104970.0,104960.0,2.6903919]
[1749907511102,0.02174599,104970.0,104960.0,3.0511919]
[1749907511292,0.02174599,104970.0,104960.0,3.14028293]
[1749907511690,0.21220269,104970.0,104960.0,3.14028293]
[1749907517805,0.57300269,104970.0,104960.0,2.27760204]
[1749907518002,0.83861255,104970.0,104960.0,2.27760204]
[1749907518806,0.63600269,104970.0,104960.0,2.27760204]
[1749907519307,0.83861255,104970.0,104960.0,2.04646534]
[1749907519711,0.83861255,104970.0,104960.0,1.98707132]
[1749907520006,0.8979892,104970.0,104960.0,1.98707132]
[1749907520407,0.8427509,104970.0,104960.0,1.98707132]
[1749907521203,0.8427509,104970.0,104960.0,1.03235132]
[1749907521409,0.8427509,104970.0,104960.0,1.98711132]
[1749907522498,0.8427509,104970.0,104960.0,2.01861132]
[1749907523402,0.83861255,104970.0,104960.0,2.01861132]
[1749907524512,0.8427509,104970.0,104960.0,2.01861132]
[1749907526106,0.8111509,104970.0,104960.0,2.01861132]
[1749907526309,0.60854104,104970.0,104960.0,2.47910534]
[1749907526513,0.60440269,104970.0,104960.0,2.47910534]
[1749907528105,0.57300269,104970.0,104960.0,2.47910534]
[1749907528410,0.57300269,104970.0,104960.0,2.51050534]
[1749907528609,0.63237934,104970.0,104960.0,2.51050534]
[1749907530618,0.27157934,104970.0,104960.0,2.51050534]
[1749907530907,0.57300269,104970.0,104960.0,2.51050534]
[1749907531111,0.63237934,104970.0,104960.0,2.51050534]
[1749907531307,0.27157934,104970.0,104960.0,2.51050534]
[1749907531503,0.63237934,104970.0,104960.0,2.51050534]
[1749907533206,0.63237934,104970.0,104960.0,1.55574534]
[1749907533406,0.63237934,104970.0,104960.0,2.51046534]
[1749907534612,0.63237934,104970.0,104960.0,2.14046534]
[1749907535015,1.13237934,104970.0,104960.0,2.14046534]
[1749907538012,1.13237934,104970.0,104960.0,1.85599054]
[1749907538013,1.3349892,104970.0,104960.0,1.85599054]
[1749907538313,1.4271892,104970.0,104960.0,1.22334544]
[1749907538516,1.4271892,104970.0,104960.0,1.16395142]
[1749907538812,1.4271892,104970.0,104960.0,0.97347652]
[1749907539008,1.4671892,104970.0,104960.0,0.01875652]
[1749907539213,1.4671892,104970.0,104960.0,0.97347652]
[1749907539721,1.47132755,104970.0,104960.0,0.01875652]
[1749907539915,1.56057643,104970.0,104960.0,0.97343652]
[1749907541811,1.55643808,104970.0,104960.0,0.97343652]
[1749907544914,1.55643808,104970.0,104960.0,0.38923142]
[1749907545118,1.55643808,104970.0,104960.0,1.16395142]
[1749907546820,1.55643808,104970.0,104960.0,1.19715142]
[1749907547023,1.55643808,104970.0,104960.0,1.22805142]
[1749907552029,1.55643808,104970.0,104960.0,1.22793142]
[1749907552928,1.52573808,104970.0,104960.0,1.22793142]
[1749907555223,1.74765216,104970.0,104960.0,1.22793142]
[1749907555422,1.74765216,104970.0,104960.0,1.26123142]
[1749907560237,1.74765216,104970.0,104960.0,1.3058479]
[1749907564342,1.68827551,104970.0,104960.0,1.3058479]
[1749907564548,1.68827551,104970.0,104960.0,1.115333]
[1749907564845,1.72007551,104970.0,104960.0,1.3058079]
[1749907566446,1.68827551,104970.0,104960.0,1.3058079]
[1749907569148,1.68827551,104970.0,104960.0,1.26119142]
[1749907569348,1.68827551,104970.0,104960.0,1.30584787]
[1749907574444,1.68827551,104970.0,104960.0,1.11537297]
[1749907574852,1.68827551,104970.0,104960.0,1.30584787]
[1749907582960,1.20225157,104970.0,104960.0,1.87380984]
[1749907583159,1.08893022,104970.0,104960.0,1.88854741]
[1749907583352,1.44973022,104970.0,104960.0,1.88854741]
[1749907583757,1.36048134,104970.0,104960.0,1.93319515]
[1749907584460,1.36048134,104970.0,104960.0,1.36523318]
[1749907584660,1.36048134,104970.0,104960.0,1.89854741]
[1749907585761,1.36048134,104970.0,104960.0,1.94318562]
[1749907590163,1.36048134,104970.0,104960.0,1.59318562]
[1749907590564,1.36048134,104970.0,104960.0,1.36522365]
[1749907592064,1.13251937,104970.0,104960.0,1.36522365]
[1749907592257,1.36048134,104970.0,104960.0,1.36522365]
[1749907593080,1.36048134,104970.0,104960.0,1.59318562]
[1749907594465,1.36048134,104970.0,104960.0,1.30582963]
[1749907595865,1.36048134,104970.0,104960.0,1.36522365]
[1749907597771,1.36048134,104970.0,104960.0,1.30582963]
[1749907599066,1.58844331,104970.0,104960.0,0.53118963]
[1749907599371,1.58844331,104970.0,104960.0,1.30562963]
[1749907599571,1.59258166,104970.0,104960.0,1.30562963]
[1749907600177,1.68183054,104970.0,104960.0,1.30562963]
[1749907601072,1.59258166,104970.0,104960.0,1.30562963]
[1749907603770,1.59258166,104970.0,104960.0,1.36502365]
[1749907604266,1.68183054,104970.0,104960.0,1.36502365]
[1749907604670,1.67769219,104970.0,104960.0,1.36502365]
[1749907605570,1.44973022,104970.0,104960.0,1.36502365]
[1749907606075,1.36048134,104970.0,104960.0,1.36502365]
[1749907607678,1.36048134,104970.0,104960.0,1.59298562]
[1749907607979,1.36048134,104970.0,104960.0,1.95298562]
[1749907608181,1.36048134,104970.0,104960.0,1.93437165]
[1749907611183,0.99968134,104970.0,104960.0,1.93437165]
[1749907611474,1.36048134,104970.0,104960.0,1.88973344]
[1749907612282,0.77171937,104970.0,104960.0,2.33962447]
[1749907612780,0.77171937,104970.0,104960.0,1.97882447]
[1749907612976,0.99968134,104970.0,104960.0,1.97882447]
[1749907614083,0.77171937,104970.0,104960.0,1.97882447]
[1749907614283,0.58126267,104970.0,104960.0,1.61882447]
[1749907614488,0.71220259,104970.0,104960.0,2.29023045]
[1749907614785,0.52174599,104970.0,104960.0,2.29023045]
[1749907614977,0.71220259,104970.0,104960.0,2.29023045]
[1749907616582,0.71020259,104970.0,104960.0,2.29023045]
[1749907616777,0.71120259,104970.0,104960.0,2.38550245]
[1749907617179,0.71120259,104970.0,104960.0,2.29023045]
[1749907617684,0.70920259,104970.0,104960.0,2.29023045]
[1749907618181,0.20920259,104970.0,104960.0,2.29023045]
[1749907618382,0.01874599,104970.0,104960.0,2.29023045]
[1749907619783,0.20920259,104970.0,104960.0,2.29023045]
[1749907622277,0.01874599,104970.0,104960.0,2.29023045]
[1749907622477,0.20920259,104970.0,104960.0,2.29023045]
[1749907622976,0.1924566,104970.0,104960.0,2.29023045]
[1749907624287,0.002,104970.0,104960.0,2.29023045]
[1749907624986,0.1924567,104970.0,104960.0,2.29023045]
[1749907625185,0.002,104970.0,104960.0,2.29023045]
[1749907625383,0.002,104970.0,104960.0,2.38550245]
[1749907625583,0.66526117,104990.0,104980.0,0.1904385]
[1749907625584,0.3145384,104990.0,104980.0,0.1904385]
[1749907625781,0.25502172,104990.0,104980.0,2.62953]
[1749907625984,0.48298369,104990.0,104980.0,2.72413]
[1749907626176,0.98298369,104990.0,104980.0,2.72413]
[1749907626785,0.70941572,104990.0,104980.0,2.72413]
[1749907626984,0.70941572,104990.0,104980.0,2.67957163]
[1749907627187,0.71241572,104990.0,104980.0,2.76868837]
[1749907627382,0.94037769,104990.0,104980.0,1.81472837]
[1749907627692,0.94037769,104990.0,104980.0,1.49764966]
[1749907627994,1.30531604,104990.0,104980.0,0.86772906]
[1749907628284,1.71331604,104990.0,104980.0,1.82160906]
[1749907628590,0.95483272,104990.0,104980.0,1.77708]
[1749907628984,0.95069437,104990.0,104980.0,0.8232]
[1749907629381,0.1904385,104980.0,104970.0,0.06345157]
[1749907629688,0.1904567,104970.0,104960.0,1.15352831]
[1749907629887,0.88936311,104970.0,104960.0,2.10740831]
[1749907630083,0.89350146,104970.0,104960.0,2.10740831]
[1749907630279,0.89350146,104970.0,104960.0,1.18901331]
[1749907631084,0.88936311,104970.0,104960.0,1.19001331]
[1749907631285,0.66140114,104970.0,104960.0,1.19001331]
[1749907631485,0.86402588,104970.0,104960.0,1.19101331]
[1749907631687,0.86402588,104970.0,104960.0,1.22191331]
[1749907631890,0.59920114,104970.0,104960.0,1.57341331]
[1749907632191,0.23840114,104970.0,104960.0,1.60521331]
[1749907632590,0.23840114,104970.0,104960.0,1.66462447]
[1749907632986,0.59920114,104970.0,104960.0,1.60521331]
[1749907634992,0.20720114,104970.0,104960.0,1.34462447]
[1749907635193,0.20720114,104970.0,104960.0,1.43462447]
[1749907635494,0.20720114,104970.0,104960.0,1.72462447]
[1749907635691,0.20720114,104970.0,104960.0,1.68009541]
[1749907636491,0.20720114,104970.0,104960.0,1.72464969]
[1749907636692,0.20720114,104970.0,104960.0,1.68009541]
[1749907636888,0.56800114,104970.0,104960.0,1.72465104]
[1749907637088,0.20720114,104970.0,104960.0,1.68009541]
[1749907639591,0.20720114,104970.0,104960.0,1.72465804]
[1749907639788,0.20720114,104970.0,104960.0,1.68009541]
[1749907641095,0.56800114,104970.0,104960.0,1.7246646]
[1749907642897,0.56800114,104970.0,104960.0,1.6646646]
[1749907643897,0.20720114,104970.0,104960.0,1.6646646]
[1749907644104,0.20720114,104970.0,104960.0,1.62009541]
[1749907650908,0.20720114,104970.0,104960.0,1.82272015]
[1749907651512,0.1904567,104970.0,104960.0,1.82272015]
[1749907651807,0.1904567,104970.0,104960.0,1.62009541]
[1749907653107,0.1904567,104970.0,104960.0,1.30009541]
[1749907653315,0.41836083,104970.0,104960.0,1.88799954]
[1749907653609,0.41836083,104970.0,104960.0,1.85799954]
[1749907654608,0.41836083,104970.0,104960.0,2.68123954]
[1749907657613,0.41836083,104970.0,104960.0,2.77035628]
[1749907661616,0.41836083,104970.0,104960.0,2.71094512]
[1749907664416,0.41836083,104970.0,104960.0,2.48094512]
[1749907664619,0.41836083,104970.0,104960.0,2.70094512]
[1749907665418,0.47787751,104970.0,104960.0,2.70094512]
[1749907668221,0.47787751,104970.0,104960.0,2.70086512]
[1749907669018,0.83867751,104970.0,104960.0,2.76037784]
[1749907669522,0.83867751,104970.0,104960.0,1.34867371]
[1749907669820,0.83867751,104970.0,104960.0,2.3512211]
[1749907671018,0.61077338,104970.0,104960.0,2.6712211]
[1749907671315,0.24997338,104970.0,104960.0,2.76033784]
[1749907672319,1.05364489,104980.0,104970.0,0.1904566]
[1749907672618,0.69284489,104980.0,104970.0,0.93747965]
[1749907672820,0.96439601,104980.0,104970.0,0.93747965]
[1749907673616,1.43589601,104980.0,104970.0,0.93747314]
[1749907674410,1.43689601,104980.0,104970.0,0.93747314]
[1749907674717,1.43689601,104980.0,104970.0,0.57285726]
[1749907675724,1.43689601,104980.0,104970.0,0.61746836]
[1749907676725,1.46849601,104980.0,104970.0,1.57118836]
[1749907676912,1.46849601,104980.0,104970.0,1.34328423]
[1749907678825,1.50169601,104980.0,104970.0,1.57118836]
[1749907680420,1.50169601,104980.0,104970.0,1.34328423]
[1749907682421,1.50169601,104980.0,104970.0,0.38956423]
[1749907682620,1.50169601,104980.0,104970.0,1.31208423]
[1749907682919,1.53249601,104980.0,104970.0,1.31208423]
[1749907683124,1.62174489,104980.0,104970.0,1.2525877]
[1749907684225,1.62174489,104980.0,104970.0,1.1887877]
[1749907691031,1.62174489,104980.0,104970.0,1.2195877]
[1749907691333,1.62174489,104980.0,104970.0,1.2501877]
[1749907695435,1.59094489,104980.0,104970.0,1.2501877]
[1749907695734,1.55774489,104980.0,104970.0,1.2818877]
[1749907701232,1.55774489,104980.0,104970.0,1.34138423]
[1749907702540,1.52614489,104980.0,104970.0,1.34138423]
[1749907702742,1.52614489,104980.0,104970.0,1.56928836]
[1749907708637,1.52614489,104980.0,104970.0,1.34138423]
[1749907709745,1.55864489,104980.0,104970.0,1.34138423]
[1749907718152,1.33074076,104980.0,104970.0,1.34138423]
[1749907718349,1.55864489,104980.0,104970.0,1.34138423]
[1749907719253,1.33074076,104980.0,104970.0,1.34138423]
[1749907719452,1.52614489,104980.0,104970.0,1.34138423]
[1749907724158,1.29824076,104980.0,104970.0,1.34138423]
[1749907724454,1.52614489,104980.0,104970.0,1.34138423]
[1749907731062,1.46662821,104980.0,104970.0,1.2818877]
[1749907733163,1.23872408,104980.0,104970.0,1.2818877]
[1749907733370,1.46662821,104980.0,104970.0,1.2818877]
[1749907734153,2.96662821,104980.0,104970.0,1.2818877]
[1749907735669,2.96662821,104980.0,104970.0,1.50979183]
[1749907736171,2.73872408,104980.0,104970.0,1.50979183]
[1749907736366,0.88985044,104980.0,104970.0,2.12719249]
[1749907736560,0.56253906,104980.0,104970.0,2.1122016]
[1749907736762,0.503,104980.0,104970.0,2.4730016]
[1749907738368,0.503,104980.0,104970.0,2.8182656]
[1749907738564,0.503,104980.0,104970.0,2.84799501]
[1749907739171,0.503,104980.0,104970.0,2.72914886]
[1749907739368,0.003,104980.0,104970.0,2.72914886]
[1749907740168,0.002,104980.0,104970.0,2.80577843]
[1749907740367,0.002,104980.0,104970.0,2.80677843]
[1749907740568,0.30261402,104990.0,104980.0,0.1904385]
[1749907740769,0.30261402,104990.0,104980.0,1.68682876]
[1749907741163,0.30261402,104990.0,104980.0,1.77581791]
[1749907741369,0.25500842,104990.0,104980.0,1.77581791]
[1749907741772,0.25800842,104990.0,104980.0,1.77581791]
[1749907742376,0.25800842,104990.0,104980.0,1.68682876]
[1749907745568,0.25819057,104990.0,104980.0,1.68682876]
[1749907746273,0.25819057,104990.0,104980.0,1.73125265]
[1749907749475,0.02016467,104990.0,104980.0,1.73125265]
[1749907750070,0.02016467,104990.0,104980.0,2.09205265]
[1749907750273,0.02016467,104990.0,104980.0,2.13661791]
[1749907753978,0.02016467,104990.0,104980.0,2.16841791]
[1749907755281,0.21058497,104990.0,104980.0,2.16841791]
[1749907756073,0.21058497,104990.0,104980.0,3.12145791]
[1749907756879,0.21058497,104990.0,104980.0,2.76065791]
[1749907757269,0.21058497,104990.0,104980.0,2.67166876]
[1749907759481,0.21058497,104990.0,104980.0,3.12145791]
[1749907763485,0.21058497,104990.0,104980.0,3.06213178]
[1749907764085,0.21058497,104990.0,104980.0,2.70133178]
[1749907764281,0.21058497,104990.0,104980.0,2.76058461]
[1749907764478,0.21058497,104990.0,104980.0,2.70133178]
[1749907765890,0.21058497,104990.0,104980.0,3.06213178]
[1749907770287,0.21058497,104990.0,104980.0,2.5326031]
[1749907770589,0.24248497,104990.0,104980.0,3.08050723]
[1749907771587,0.24248497,104990.0,104980.0,1.8998031]
[1749907771787,0.8311891,104990.0,104980.0,1.1212031]
[1749907772084,0.95332816,104990.0,104980.0,1.0915555]
[1749907772286,1.26332816,104990.0,104980.0,2.08882947]
[1749907772591,0.95332816,104990.0,104980.0,2.3167336]
[1749907773292,0.95332816,104990.0,104980.0,1.5433336]
[1749907773588,0.95332816,104990.0,104980.0,2.07021402]
[1749907773788,0.95332816,104990.0,104980.0,2.29811815]
[1749907775198,0.95332816,104990.0,104980.0,2.60811815]
[1749907775493,0.8937891,104990.0,104980.0,2.60811815]
[1749907782606,0.8937891,104990.0,104980.0,2.07021402]
[1749907782796,0.8937891,104990.0,104980.0,2.63811815]
[1749907784298,0.8937891,104990.0,104980.0,2.32951815]
[1749907784497,0.8937891,104990.0,104980.0,2.67951815]
[1749907785205,0.8937891,104990.0,104980.0,2.71121815]
[1749907786307,0.8937891,104990.0,104980.0,2.36121815]
[1749907786507,0.8937891,104990.0,104980.0,2.32981815]
[1749907786698,0.8937891,104990.0,104980.0,1.11745402]
[1749907786897,0.8937891,104990.0,104980.0,2.2388166]
[1749907787305,0.8937891,104990.0,104980.0,1.05811247]
[1749907787506,0.8937891,104990.0,104980.0,2.01091247]
[1749907788105,0.8937891,104990.0,104980.0,2.2388166]
[1749907788807,0.8937891,104990.0,104980.0,2.01091247]
[1749907789009,0.8937891,104990.0,104980.0,2.2388166]
[1749907791897,0.8937891,104990.0,104980.0,2.3033166]
[1749907794312,0.95332816,104990.0,104980.0,2.36265815]
[1749907797012,0.92102816,104990.0,104980.0,2.36265815]
[1749907797207,0.92102816,104990.0,104980.0,2.39315815]
[1749907797510,0.89072816,104990.0,104980.0,2.39315815]
[1749907798512,0.85882816,104990.0,104980.0,2.50525402]
[1749907798713,0.85882816,104990.0,104980.0,2.75315815]
[1749907801314,0.85882816,104990.0,104980.0,2.70864418]
[1749907802716,0.85882816,104990.0,104980.0,2.12074005]
[1749907803014,0.85882816,104990.0,104980.0,0.88250155]
[1749907803317,1.01167704,104990.0,104980.0,2.07024796]
[1749907803617,1.04347704,104990.0,104980.0,2.01090641]
[1749907803817,1.04347704,104990.0,104980.0,1.05814641]
[1749907804006,1.04347704,104990.0,104980.0,2.01090641]
[1749907804209,1.04347704,104990.0,104980.0,2.01094641]
[1749907806022,1.04347704,104990.0,104980.0,1.82050791]
[1749907807221,1.04347704,104990.0,104980.0,0.86770791]
[1749907807411,1.04347704,104990.0,104980.0,1.82050791]
[1749907807611,1.04347704,104990.0,104980.0,1.04706791]
[1749907807817,1.04347704,104990.0,104980.0,1.82050791]
[1749907808010,0.98393798,104990.0,104980.0,1.82050791]
[1749907808512,1.04343026,104990.0,104980.0,1.82050791]
[1749907808918,1.04343026,104990.0,104980.0,0.86770791]
[1749907809217,0.98393798,104990.0,104980.0,1.82050791]
[1749907809821,0.98393798,104990.0,104980.0,1.77596]
[1749907810417,0.98393798,104990.0,104980.0,0.82316]
[1749907811017,0.98393798,104990.0,104980.0,1.77596]
[1749907812112,0.98393798,104990.0,104980.0,1.00252]
[1749907812312,0.98393798,104990.0,104980.0,0.82316]
[1749907812514,0.98393798,104990.0,104980.0,1.776]
[1749907813525,1.34393798,104990.0,104980.0,0.82316]
[1749907813724,1.34393798,104990.0,104970.0,0.0445433]
[1749907813725,0.1904384,104980.0,104970.0,0.0445433]
[1749907813923,1.36533479,104980.0,104970.0,0.9973833]
[1749907814111,1.39533479,104980.0,104970.0,0.9973833]
[1749907814315,1.02533479,104980.0,104970.0,0.9973833]
[1749907814719,1.52533479,104980.0,104970.0,0.9973833]
[1749907814922,1.52533479,104980.0,104970.0,0.95384]
[1749907815217,1.52533479,104980.0,104970.0,0.9983833]
[1749907815421,1.52533479,104980.0,104970.0,0.95384]
[1749907815919,1.52533479,104980.0,104970.0,0.18036]
[1749907816114,1.54733479,104980.0,104970.0,0.95384]
[1749907816514,1.83733479,104980.0,104970.0,0.95384]
[1749907816715,1.54733479,104980.0,104970.0,0.95284]
[1749907816916,1.54833479,104980.0,104970.0,0.95284]
[1749907817726,1.53833479,104980.0,104970.0,0.95284]
[1749907817917,1.54833479,104980.0,104970.0,0.95284]
[1749907818123,1.89833479,104980.0,104970.0,0.95284]
[1749907819721,0.1904567,104970.0,104960.0,1.19819855]
[1749907819921,0.83857826,104970.0,104960.0,1.19819855]
[1749907820122,0.83857826,104970.0,104960.0,2.15107855]
[1749907820817,0.83857826,104970.0,104960.0,2.05891675]
[1749907821026,0.83857826,104970.0,104960.0,2.05991675]
[1749907821325,1.33857826,104970.0,104960.0,2.05991675]
[1749907821521,1.33857826,104970.0,104960.0,1.86944255]
[1749907827726,1.33857826,104970.0,104960.0,1.86948255]
[1749907828129,1.33857826,104970.0,104960.0,1.28639735]
[1749907828423,1.33857826,104970.0,104960.0,2.05995735]
[1749907829327,1.33857826,104970.0,104960.0,1.86948255]
[1749907831624,1.33857826,104970.0,104960.0,2.05995725]
[1749907835329,1.34271661,104970.0,104960.0,2.05995725]
[1749907837631,1.34271661,104970.0,104960.0,1.86948255]
[1749907838632,1.43193197,104970.0,104960.0,1.86948255]
[1749907838932,1.43193197,104970.0,104960.0,0.91656255]
[1749907839133,1.43193197,104970.0,104960.0,1.86948255]
[1749907840527,1.34271661,104970.0,104960.0,1.86948255]
[1749907841132,1.43193197,104970.0,104960.0,1.91402585]
[1749907842831,1.43193197,104970.0,104960.0,2.10450065]
[1749907843033,1.43193197,104970.0,104960.0,1.91402585]
[1749907843335,1.43193197,104970.0,104960.0,2.10450055]
[1749907844339,1.43193197,104970.0,104960.0,2.33240468]
[1749907844645,1.11067413,104970.0,104960.0,2.65240468]
[1749907844941,1.11067413,104970.0,104960.0,2.71174623]
[1749907846544,1.11067413,104970.0,104960.0,2.66720293]
[1749907847045,1.33857826,104970.0,104960.0,2.2492988]
[1749907847243,1.33857826,104970.0,104960.0,2.68720293]
[1749907848745,0.97777826,104970.0,104960.0,2.65720293]
[1749907849041,0.749956,104970.0,104960.0,2.34733423]
[1749907849245,0.749956,104970.0,104960.0,3.04813423]
[1749907849447,0.6904567,104970.0,104960.0,3.13712338]
[1749907849640,0.5,104970.0,104960.0,3.13712338]
[1749907849839,0.5,104970.0,104960.0,3.09593978]
[1749907850143,0.5,104970.0,104960.0,2.86803565]
[1749907850444,0.5,104970.0,104960.0,3.33012676]
[1749907850642,0.5,104970.0,104960.0,3.44897291]
[1749907850847,0.5,104970.0,104960.0,3.69897291]
[1749907851245,0.5,104970.0,104960.0,3.58012676]
[1749907851650,0.5,104970.0,104960.0,3.69880639]
[1749907852045,0.25520547,104990.0,104980.0,0.1904385]
[1749907852246,0.25520547,104990.0,104980.0,2.9446426]
[1749907852449,0.01716467,104990.0,104980.0,3.0417426]
[1749907852643,0.01716467,104990.0,104980.0,3.51029543]
[1749907852943,0.57789504,105010.0,105000.0,0.1904023]
[1749907853143,1.07619747,105010.0,105000.0,1.74557628]
[1749907853353,0.76829334,105010.0,105000.0,1.62357215]
[1749907853648,1.26829334,105010.0,105000.0,1.62357215]
[1749907853850,1.28535468,105010.0,105000.0,1.62357215]
[1749907854542,1.28935468,105010.0,105000.0,1.5791023]
[1749907854738,0.92855468,105010.0,105000.0,1.5791023]
[1749907854944,0.93155468,105010.0,105000.0,1.5791023]
[1749907855448,1.29235468,105010.0,105000.0,1.5791023]
[1749907855649,1.29135468,105010.0,105000.0,1.5791023]
[1749907856252,1.29135468,105010.0,105000.0,1.6116023]
[1749907859654,1.19615538,105010.0,105000.0,1.6116023]
[1749907859854,0.83535538,105010.0,105000.0,1.9724023]
[1749907860049,0.83535538,105010.0,105000.0,2.7954823]
[1749907860747,0.52306134,105010.0,105000.0,2.99791799]
[1749907860946,0.52306134,105010.0,105000.0,3.04238784]
[1749907861148,0.52306134,105010.0,105000.0,3.13761984]
[1749907861454,0.52306134,105010.0,105000.0,3.19674163]